bitfinex/quotes_ETHUSD_20250913
["timestamp","ask_amount","ask_price","bid_price","bid_amount"]
[1757784272955,2.16074327,4628.1,4627.6,1.197]
[1757784273789,2.16081462,4627.9,4627.6,0.2974]
[1757784274083,0.108,4627.6,4627.2,0.8996]
[1757784274389,0.108,4627.6,4627.3,0.20193274]
[1757784274558,0.108,4627.6,4627.4,0.20193274]
[1757784274760,0.108,4627.6,4627.5,0.20193274]
[1757784275284,0.4053,4627.6,4627.5,0.20193274]
[1757784275484,3.26525886,4627.6,4627.5,0.20193274]
[1757784275684,2.16104743,4627.4,4626.7,1.16310619]
[1757784276005,0.108,4627.0,4626.8,0.20213279]
[1757784276202,0.2973,4626.9,4626.3,0.454]
[1757784276367,0.108,4626.6,4626.5,2.1614548]
[1757784276684,0.108,4626.6,4626.5,1.39913921]
[1757784277362,0.108,4626.6,4626.5,1.87151833]
[1757784278916,1.658,4627.6,4626.8,2.16128263]
[1757784279062,0.108,4627.1,4626.9,1.10173921]
[1757784279262,0.108,4627.3,4627.0,3.5603621]
[1757784279475,0.108,4627.3,4627.1,1.10173921]
[1757784279669,0.108,4627.3,4627.2,0.20213921]
[1757784279863,0.108,4627.3,4627.2,0.49953921]
[1757784280078,0.108,4627.3,4627.2,1.39913921]
[1757784283503,0.108,4627.3,4627.2,3.56027337]
[1757784284166,0.108,4627.3,4627.2,3.56024961]
[1757784284674,0.108,4627.3,4627.2,4.25097352]
[1757784285695,0.108,4627.3,4627.2,2.08983936]
[1757784286091,0.108,4627.3,4627.2,4.25097352]
[1757784288775,0.108,4627.3,4627.2,2.08983936]
[1757784289081,0.108,4627.3,4627.2,4.25097352]
[1757784292915,0.108,4627.3,4627.2,2.08983936]
[1757784293213,0.108,4627.3,4627.2,0.95351545]
[1757784293583,0.108,4627.3,4627.2,0.20211545]
[1757784294113,0.4093,4627.3,4627.2,0.20211545]
[1757784294276,0.4284,4627.7,4627.2,0.20211545]
[1757784294609,0.108,4627.6,4627.3,0.20211545]
[1757784294812,0.099,4627.4,4627.1,0.001]
[1757784294987,0.099,4627.4,4627.2,0.20205218]
[1757784295186,0.099,4627.4,4627.3,0.20205218]
[1757784297425,2.71144075,4627.4,4627.3,0.20205218]
[1757784297828,3.05254075,4627.4,4627.3,0.20205218]
[1757784298210,3.05254075,4627.4,4627.1,0.001]
[1757784298211,2.16108745,4627.3,4627.1,0.001]
[1757784298407,5.83713416,4627.2,4627.1,0.001]
[1757784298613,7.11388799,4627.2,4627.1,0.001]
[1757784298812,7.90398799,4627.2,4627.1,0.001]
[1757784300272,8.69598799,4627.2,4627.1,0.001]
[1757784301730,8.35728799,4627.2,4627.1,0.001]
[1757784301927,7.90588799,4627.2,4627.1,0.001]
[1757784302450,7.90579216,4627.2,4627.1,0.001]
[1757784302852,8.69589216,4627.2,4627.1,0.001]
[1757784304153,7.90579216,4627.2,4627.1,0.001]
[1757784304526,8.69589216,4627.2,4627.1,0.001]
[1757784305466,8.35719216,4627.2,4627.1,0.001]
[1757784305644,15.37719216,4627.2,4627.1,0.001]
[1757784306063,15.71589216,4627.2,4627.1,0.001]
[1757784308354,15.37719216,4627.2,4627.1,0.001]
[1757784308666,15.71589216,4627.2,4627.1,0.001]
[1757784308854,22.20921857,4627.2,4627.1,0.001]
[1757784309065,18.91634658,4627.2,4627.1,0.001]
[1757784309267,19.39944658,4627.2,4627.1,0.001]
[1757784309631,22.69231857,4627.2,4627.1,0.001]
[1757784309836,22.69223365,4627.2,4627.1,0.001]
[1757784310868,19.39936166,4627.2,4627.1,0.001]
[1757784311180,22.69223365,4627.2,4627.1,0.001]
[1757784311796,19.39936166,4627.2,4627.1,0.001]
[1757784312263,19.39918407,4627.2,4627.1,0.001]
[1757784312985,22.97581956,4627.2,4627.1,0.001]
[1757784314214,26.26869155,4627.2,4627.1,0.001]
[1757784314360,26.72963178,4627.2,4627.1,0.001]
[1757784315258,32.19663378,4627.2,4627.1,0.001]
[1757784315661,32.00681178,4627.2,4627.1,0.001]
[1757784316296,2.16220891,4624.9,4624.8,0.081]
[1757784316458,7.49620891,4624.9,4624.8,0.081]
[1757784317202,7.59520891,4624.9,4624.8,0.081]
[1757784317409,8.37726058,4624.9,4624.8,0.081]
[1757784318115,8.27826058,4624.9,4624.8,0.3888]
[1757784318322,8.27826058,4624.9,4624.8,1.3042]
[1757784319115,8.27826058,4624.9,4624.8,0.8477]
[1757784319583,8.27826058,4624.9,4624.8,0.3888]
[1757784319783,8.27826058,4624.9,4624.8,0.081]
[1757784320475,11.27826058,4624.9,4624.8,0.081]
[1757784320787,11.37726058,4624.9,4624.8,0.081]
[1757784321396,11.27826058,4624.9,4624.8,0.081]
[1757784321626,11.27826058,4624.9,4624.8,0.3888]
[1757784321796,11.27826058,4624.9,4624.8,0.081]
[1757784324712,11.27826058,4624.9,4624.8,0.3888]
[1757784324923,7.60326058,4624.9,4624.8,0.8477]
[1757784325078,11.27826058,4624.9,4624.8,0.8477]
[1757784325281,11.27826058,4624.9,4624.8,0.8453]
[1757784325494,11.27826058,4624.9,4624.8,1.3042]
[1757784325914,12.07026058,4624.9,4624.8,0.8477]
[1757784328608,8.39526058,4624.9,4624.8,0.8477]
[1757784328832,12.07026058,4624.9,4624.8,0.8477]
[1757784329332,12.07026058,4624.9,4624.8,0.081]
[1757784329626,12.16926058,4624.9,4624.8,0.081]
[1757784330131,12.72885067,4624.9,4624.8,0.081]
[1757784330429,5.95434917,4624.6,4624.5,0.001]
[1757784330732,10.68312133,4624.6,4624.5,0.001]
[1757784330926,10.78452133,4624.6,4624.5,0.001]
[1757784331090,10.87105637,4624.6,4624.5,0.001]
[1757784331296,10.99111825,4624.6,4624.5,0.001]
[1757784332604,7.21571825,4624.6,4624.5,0.001]
[1757784332805,10.88971825,4624.6,4624.5,0.3017]
[1757784333130,10.88971825,4624.6,4624.5,0.001]
[1757784335197,10.88971825,4624.6,4624.5,0.3017]
[1757784335397,10.88971825,4624.6,4624.5,1.2352]
[1757784335813,10.88971825,4624.6,4624.3,0.001]
[1757784335814,2.16244269,4624.4,4624.3,0.001]
[1757784336041,5.83644269,4624.4,4624.3,0.001]
[1757784336247,6.27300457,4624.4,4624.3,0.001]
[1757784336619,13.29300457,4624.4,4624.3,0.001]
[1757784337045,13.76850457,4624.4,4624.3,0.7957]
[1757784337216,14.82327673,4624.4,4624.3,0.7957]
[1757784340049,7.14006188,4624.4,4624.3,0.7957]
[1757784340202,10.694,4624.4,4624.3,1.2352]
[1757784340406,12.85644269,4624.4,4624.3,1.2352]
[1757784340901,9.18244269,4624.4,4624.3,1.2352]
[1757784341154,10.694,4624.4,4624.3,1.2352]
[1757784341443,0.108,4624.5,4624.3,1.2352]
[1757784341695,3.674,4624.4,4624.3,0.3017]
[1757784342118,5.83644269,4624.4,4624.3,0.3017]
[1757784342317,3.673,4624.4,4624.3,1.2352]
[1757784342740,5.83544269,4624.4,4624.3,1.2352]
[1757784343234,2.16244269,4624.4,4624.3,1.2352]
[1757784343405,5.83544269,4624.4,4624.3,1.2352]
[1757784345152,3.673,4624.4,4624.3,1.2352]
[1757784346062,0.108,4624.5,4624.3,1.2352]
[1757784346220,0.12260744,4624.8,4624.3,1.2352]
[1757784346221,0.002,4624.8,4624.4,0.9168]
[1757784346405,0.108,4624.5,4624.4,0.9168]
[1757784346611,3.781,4624.5,4624.4,1.209]
[1757784347520,3.781,4624.5,4624.4,3.37144269]
[1757784347755,0.108,4624.5,4624.4,3.72331154]
[1757784348731,0.002,4624.8,4624.7,2.16230241]
[1757784349137,0.002,4624.8,4624.7,1.2296]
[1757784349778,0.002,4624.8,4624.7,3.39190241]
[1757784349931,0.002,4624.8,4624.7,1.2296]
[1757784351627,0.002,4624.8,4624.7,0.768]
[1757784353276,0.002,4624.8,4624.7,1.2296]
[1757784356031,0.002,4624.8,4624.7,0.768]
[1757784357767,0.002,4624.8,4624.7,1.2296]
[1757784358636,0.002,4624.8,4624.7,3.51702476]
[1757784364745,0.002,4624.8,4624.7,1.35472235]
[1757784364947,0.002,4624.8,4624.7,0.768]
[1757784366386,0.002,4624.8,4624.7,3.39190241]
[1757784369965,0.002,4624.8,4624.7,6.39190241]
[1757784370166,0.002,4624.8,4624.7,6.49990241]
[1757784370369,0.002,4624.8,4624.7,7.86921338]
[1757784374575,0.002,4624.8,4624.7,3.667]
[1757784374576,0.3048,4624.8,4624.7,3.667]
[1757784374784,0.7586,4624.8,4624.7,3.667]
[1757784374977,0.7586,4624.8,4624.6,3.82134256]
[1757784375172,0.7586,4624.8,4624.7,3.667]
[1757784376194,0.7586,4624.8,4624.6,1.659]
[1757784376402,0.5705,4624.7,4624.6,1.659]
[1757784376590,0.8622,4624.7,4624.6,5.326]
[1757784377000,0.8622,4624.7,4624.5,0.001]
[1757784377273,0.8622,4624.7,4624.5,3.668]
[1757784377469,0.4625,4624.6,4624.5,3.668]
[1757784377671,0.7542,4624.6,4624.5,0.001]
[1757784379606,3.49950917,4624.6,4624.5,0.001]
[1757784380704,3.5860356,4624.6,4624.5,0.001]
[1757784381776,7.2520356,4624.6,4624.5,0.001]
[1757784381975,7.37269181,4624.6,4624.5,0.001]
[1757784383298,7.2520356,4624.6,4624.5,0.001]
[1757784385209,6.8006356,4624.6,4624.5,0.001]
[1757784385408,7.2520356,4624.6,4624.5,0.001]
[1757784386712,6.8006356,4624.6,4624.5,0.001]
[1757784388776,6.71410917,4624.6,4624.5,0.001]
[1757784396224,7.16550917,4624.6,4624.5,0.001]
[1757784396426,8.04403672,4624.6,4624.5,0.001]
[1757784396633,15.06403672,4624.6,4624.5,0.001]
[1757784397203,18.06403672,4624.6,4624.5,0.001]
[1757784397610,18.1845629,4624.6,4624.5,0.001]
[1757784401097,2.95453622,4624.2,4624.1,1e-08]
[1757784401303,9.61853622,4624.2,4624.1,1e-08]
[1757784401513,10.9446624,4624.2,4624.1,1e-08]
[1757784402310,3.0750624,4624.2,4624.1,1e-08]
[1757784402656,3.0750624,4624.2,4624.1,1.18810001]
[1757784402657,3.664,4624.2,4624.1,1.18810001]
[1757784402865,5.82653622,4624.2,4624.1,1.18810001]
[1757784407415,2.16240409,4624.5,4624.1,1.18960001]
[1757784407629,7.02,4624.6,4624.2,0.8989]
[1757784407811,2.16244389,4624.4,4624.3,0.8989]
[1757784408035,9.18234917,4624.6,4624.5,0.3118]
[1757784408240,10.43785998,4624.6,4624.5,0.7765]
[1757784408462,14.10085998,4624.6,4624.5,0.7765]
[1757784410147,12.96619392,4624.6,4624.5,0.7765]
[1757784410449,10.80384475,4624.6,4624.5,1.2059]
[1757784410643,12.96619392,4624.6,4624.5,1.2059]
[1757784411030,12.96619392,4624.6,4624.5,1.2069]
[1757784411225,12.96819392,4624.6,4624.5,1.2069]
[1757784411436,14.48143995,4624.6,4624.5,1.2069]
[1757784411642,14.48143995,4624.6,4624.5,0.7775]
[1757784414525,14.48043995,4624.6,4624.5,0.7775]
[1757784415254,14.3595952,4624.6,4624.5,0.7775]
[1757784415753,14.6645952,4624.6,4624.5,0.001]
[1757784418159,14.78550535,4624.6,4624.5,0.001]
[1757784418372,15.1139952,4624.6,4624.5,0.001]
[1757784419853,15.2349039,4624.6,4624.5,0.001]
[1757784420269,14.7855039,4624.6,4624.5,0.001]
[1757784420473,15.2349039,4624.6,4624.5,0.001]
[1757784420646,14.4805039,4624.6,4624.5,0.001]
[1757784421346,14.4805039,4624.6,4624.5,1.2025]
[1757784421558,12.96725787,4624.6,4624.5,1.2025]
[1757784421776,12.96725787,4624.6,4624.5,0.7731]
[1757784423350,12.84634917,4624.6,4624.5,0.7731]
[1757784424792,12.84634917,4624.6,4624.5,0.472]
[1757784425193,12.84634917,4624.6,4624.5,0.7731]
[1757784425365,12.84634917,4624.6,4624.5,1.2025]
[1757784425366,7.022,4624.6,4624.5,1.2025]
[1757784427893,9.18434917,4624.6,4624.5,1.2025]
[1757784428189,7.022,4624.6,4624.5,1.2025]
[1757784430284,0.002,4624.6,4624.5,1.2025]
[1757784431490,0.002,4624.6,4624.5,1.53899855]
[1757784431687,0.11,4624.6,4624.5,3.36489593]
[1757784432113,0.002,4624.6,4624.5,3.38651988]
[1757784432466,0.002,4624.6,4624.5,4.63629226]
[1757784434298,0.002,4624.6,4624.5,3.47289593]
[1757784434800,0.002,4624.6,4624.5,7.13089593]
[1757784434971,0.002,4624.6,4624.5,8.12622516]
[1757784436088,0.002,4624.6,4624.5,7.69682516]
[1757784436305,0.002,4624.6,4624.5,8.14182516]
[1757784436493,0.002,4624.6,4624.5,12.30522149]
[1757784436806,0.002,4624.8,4624.7,2.16230241]
[1757784436964,0.002,4624.8,4624.7,6.49271517]
[1757784437165,0.002,4624.8,4624.7,11.35211517]
[1757784437503,0.002,4624.8,4624.7,12.51464836]
[1757784438369,0.002,4624.8,4624.7,8.85664836]
[1757784438570,0.002,4624.8,4624.7,12.51364836]
[1757784439609,0.002,4624.8,4624.7,8.41164836]
[1757784439813,0.002,4624.8,4624.7,12.51364836]
[1757784440312,0.002,4624.8,4624.7,11.35111517]
[1757784440609,0.002,4624.8,4624.7,8.85664836]
[1757784440912,0.002,4624.8,4624.7,12.51364836]
[1757784441097,0.002,4624.8,4624.7,11.35111517]
[1757784441287,0.002,4624.8,4624.7,10.90611517]
[1757784441491,0.002,4624.8,4624.7,11.35111517]
[1757784442019,0.002,4624.8,4624.7,7.24911517]
[1757784442332,0.002,4624.8,4624.7,10.90511517]
[1757784442722,0.3175,4624.8,4624.7,7.98641276]
[1757784443032,0.7621,4624.8,4624.7,6.656]
[1757784443234,0.7621,4624.8,4624.7,8.81830241]
[1757784443410,0.3175,4624.8,4624.7,6.656]
[1757784443614,0.3175,4624.8,4624.7,8.81830241]
[1757784443942,0.3175,4624.8,4624.7,5.16230241]
[1757784444143,0.3175,4624.8,4624.7,3.656]
[1757784444309,0.7621,4624.8,4624.7,3.656]
[1757784444648,0.7621,4624.8,4624.5,0.109]
[1757784444814,0.108,4624.6,4624.5,0.001]
[1757784445328,0.8681,4624.6,4624.5,0.001]
[1757784447344,0.4235,4624.6,4624.5,0.001]
[1757784447499,0.3155,4624.6,4624.5,0.001]
[1757784448040,0.7601,4624.6,4624.5,0.001]
[1757784448401,0.3155,4624.6,4624.5,0.001]
[1757784448602,2.92244917,4624.6,4624.5,0.001]
[1757784449023,0.7601,4624.6,4624.5,0.001]
[1757784449237,0.3155,4624.6,4624.5,0.001]
[1757784449439,0.002,4624.8,4624.5,0.001]
[1757784449609,0.108,4624.6,4624.5,0.2929]
[1757784449809,0.108,4624.6,4624.5,0.001]
[1757784450146,0.4235,4624.6,4624.5,0.001]
[1757784450438,0.108,4624.6,4624.5,0.7574]
[1757784450642,0.108,4624.6,4624.5,0.77902395]
[1757784450819,0.108,4624.6,4624.5,3.67762395]
[1757784451206,0.4235,4624.6,4624.5,0.02262395]
[1757784451407,0.108,4624.6,4624.5,0.001]
[1757784451729,0.4235,4624.6,4624.5,0.001]
[1757784452116,0.8681,4624.6,4624.5,0.001]
[1757784452319,0.108,4624.6,4624.5,0.001]
[1757784452519,0.4235,4624.6,4624.5,0.001]
[1757784453023,0.8681,4624.6,4624.5,0.001]
[1757784453836,0.4235,4624.6,4624.5,0.001]
[1757784454143,3.48184917,4624.6,4624.5,0.001]
[1757784455016,4.0464621,4624.6,4624.5,0.001]
[1757784455219,3.9384621,4624.6,4624.5,0.001]
[1757784457041,4.7304621,4624.6,4624.5,0.001]
[1757784457440,7.7304621,4624.6,4624.5,0.001]
[1757784457642,7.85124057,4624.6,4624.5,0.001]
[1757784459116,11.50524057,4624.6,4624.5,0.001]
[1757784464343,2.95481685,4623.6,4623.5,1e-08]
[1757784464656,14.56528674,4623.6,4623.5,1e-08]
[1757784464960,16.09794186,4623.6,4623.5,1e-08]
[1757784465270,12.88703959,4623.6,4623.5,1e-08]
[1757784466228,12.68631716,4623.6,4623.5,1e-08]
[1757784466550,13.25093009,4623.6,4623.5,1e-08]
[1757784466871,13.45142081,4623.6,4623.5,1e-08]
[1757784467228,9.79715335,4623.6,4623.5,1e-08]
[1757784467474,9.34575335,4623.6,4623.5,1e-08]
[1757784467631,12.99975335,4623.6,4623.5,1e-08]
[1757784468161,3.45015335,4623.6,4623.5,1e-08]
[1757784468374,7.56338447,4623.6,4623.5,1e-08]
[1757784469361,7.47681685,4623.6,4623.5,1e-08]
[1757784470165,8.25711685,4623.6,4623.5,1e-08]
[1757784471679,7.47681685,4623.6,4623.5,1e-08]
[1757784471840,3.82281685,4623.6,4623.5,1e-08]
[1757784472184,7.47681685,4623.6,4623.5,1e-08]
[1757784472958,7.79141685,4623.6,4623.5,1e-08]
[1757784473943,8.83255263,4623.6,4623.5,1e-08]
[1757784474345,9.30345263,4623.6,4623.5,1e-08]
[1757784474741,9.31345263,4623.6,4623.5,1e-08]
[1757784477382,9.31245263,4623.6,4623.5,1e-08]
[1757784477577,8.83155263,4623.6,4623.5,1e-08]
[1757784477984,9.31245263,4623.6,4623.5,1e-08]
[1757784478479,9.78335263,4623.6,4623.5,1e-08]
[1757784478686,13.57535263,4623.6,4623.5,1e-08]
[1757784478857,13.89646952,4623.6,4623.5,1e-08]
[1757784480783,20.91646952,4623.6,4623.5,1e-08]
[1757784480985,20.44556952,4623.6,4623.5,1e-08]
[1757784481148,19.33911904,4623.6,4623.5,0.78180001]
[1757784481681,18.85821904,4623.6,4623.5,0.78180001]
[1757784481887,18.86021904,4623.6,4623.5,0.78180001]
[1757784482186,18.65937146,4623.6,4623.5,0.78180001]
[1757784482381,15.00637146,4623.6,4623.5,0.78180001]
[1757784482574,18.65937146,4623.6,4623.5,0.78180001]
[1757784482773,11.88595263,4623.6,4623.5,0.78180001]
[1757784482950,14.49781685,4623.6,4623.5,0.78180001]
[1757784484205,14.61849305,4623.6,4623.5,0.78180001]
[1757784485251,14.81970351,4623.6,4623.5,0.78180001]
[1757784485959,11.16670351,4623.6,4623.5,0.78180001]
[1757784486159,14.81870351,4623.6,4623.5,0.78180001]
[1757784488996,14.81870351,4623.6,4623.5,1.21020001]
[1757784489192,14.81870351,4623.6,4623.5,0.78180001]
[1757784489395,11.16670351,4623.6,4623.5,0.78180001]
[1757784489600,12.334,4623.6,4623.5,1.21020001]
[1757784490289,14.49681685,4623.6,4623.5,1.21020001]
[1757784490871,14.49581685,4623.6,4623.5,1.21020001]
[1757784491787,10.84481685,4623.6,4623.5,1.21020001]
[1757784491987,14.49581685,4623.6,4623.5,1.21020001]
[1757784493893,12.333,4623.6,4623.5,1.21020001]
[1757784494070,14.49581685,4623.6,4623.5,1.21020001]
[1757784494798,10.84481685,4623.6,4623.5,1.21020001]
[1757784495184,14.49581685,4623.6,4623.5,1.21020001]
[1757784496264,10.84481685,4623.6,4623.5,0.78180001]
[1757784496491,1.662,4623.6,4623.5,1.21220001]
[1757784496797,7.47581685,4623.6,4623.5,1.21220001]
[1757784497186,5.313,4623.6,4623.5,1.21220001]
[1757784497498,5.313,4623.6,4623.5,0.78180001]
[1757784497797,5.313,4623.6,4623.5,1.21220001]
[1757784498166,0.002,4623.6,4623.5,1.21220001]
[1757784498367,0.002,4623.6,4623.5,1.33352001]
[1757784499276,3.652,4623.6,4623.5,1.21220001]
[1757784502883,0.002,4623.6,4623.5,3.48306364]
[1757784503106,0.002,4623.6,4623.5,3.50469227]
[1757784503279,0.002,4623.6,4623.5,4.66627942]
[1757784503474,0.002,4623.6,4623.5,0.40890001]
[1757784503678,0.002,4623.6,4623.5,0.30410001]
[1757784504084,0.002,4623.6,4623.5,1.22710001]
[1757784506813,0.002,4623.6,4623.5,3.38996364]
[1757784508078,0.002,4623.6,4623.5,3.96914644]
[1757784508317,0.002,4623.6,4623.5,4.07714644]
[1757784509617,0.002,4623.6,4623.5,4.05551781]
[1757784510913,0.002,4623.6,4623.5,7.70351781]
[1757784511354,0.002,4623.6,4623.5,8.86510496]
[1757784511536,0.002,4623.6,4623.5,4.05551781]
[1757784511850,0.002,4623.6,4623.5,7.70351781]
[1757784513018,0.002,4623.6,4623.5,4.20555418]
[1757784513323,0.002,4623.6,4623.5,6.60756364]
[1757784513859,0.002,4623.6,4623.5,4.44470001]
[1757784514443,0.002,4623.6,4623.5,6.60756364]
[1757784514648,0.002,4623.6,4623.5,1e-08]
[1757784514956,0.7377,4623.6,4623.5,1e-08]
[1757784515136,0.3014,4623.6,4623.5,1e-08]
[1757784516120,0.002,4623.6,4623.5,1e-08]
[1757784516342,0.002,4623.6,4623.5,3.38996364]
[1757784516652,0.002,4623.6,4623.5,1.22710001]
[1757784516838,0.002,4623.6,4623.5,0.79670001]
[1757784517215,0.002,4623.6,4623.5,0.49260001]
[1757784517419,0.3014,4623.6,4623.5,1e-08]
[1757784517631,0.7377,4623.6,4623.5,1e-08]
[1757784520190,3.64136433,4623.6,4623.5,1e-08]
[1757784520742,3.72791398,4623.6,4623.5,1e-08]
[1757784520942,3.64136433,4623.6,4623.5,1e-08]
[1757784521994,6.64136433,4623.6,4623.5,1e-08]
[1757784522145,6.96363309,4623.6,4623.5,1e-08]
[1757784523276,7.75563309,4623.6,4623.5,1e-08]
[1757784529661,7.75565734,4623.6,4623.5,1e-08]
[1757784530797,7.30464819,4623.6,4623.5,1e-08]
[1757784531177,10.95164819,4623.6,4623.5,1e-08]
[1757784531390,7.30464819,4623.6,4623.5,1e-08]
[1757784531563,10.95164819,4623.6,4623.5,1e-08]
[1757784532760,10.95134929,4623.6,4623.5,1e-08]
[1757784534887,10.95101923,4623.6,4623.5,1e-08]
[1757784536392,10.95094048,4623.6,4623.5,1e-08]
[1757784537087,17.97094048,4623.6,4623.5,1e-08]
[1757784541176,11.40234048,4623.6,4623.5,1e-08]
[1757784541725,11.48890174,4623.6,4623.5,1e-08]
[1757784545789,18.50890174,4623.6,4623.5,1e-08]
[1757784545993,18.97183759,4623.6,4623.5,1e-08]
[1757784549905,18.52043759,4623.6,4623.5,1e-08]
[1757784551720,18.51843759,4623.6,4623.5,1e-08]
[1757784552774,18.08213759,4623.6,4623.5,1e-08]
[1757784553358,18.53883759,4623.6,4623.5,1e-08]
[1757784554539,18.08113759,4623.6,4623.5,1e-08]
[1757784554939,17.78173759,4623.6,4623.5,1e-08]
[1757784555163,17.78270716,4623.6,4623.5,0.76980001]
[1757784555859,16.99070716,4623.6,4623.5,1.21620001]
[1757784556061,17.78270716,4623.6,4623.5,1.21620001]
[1757784556266,16.99070716,4623.6,4623.5,1.21620001]
[1757784556634,17.78270716,4623.6,4623.5,1.21620001]
[1757784557449,17.78270716,4623.6,4623.5,1e-08]
[1757784559970,18.08720716,4623.6,4623.5,1e-08]
[1757784560173,18.55260716,4623.6,4623.5,1e-08]
[1757784560774,18.55253574,4623.6,4623.5,1e-08]
[1757784561343,20.21253574,4623.6,4623.5,1e-08]
[1757784564378,19.74713574,4623.6,4623.5,1e-08]
[1757784567269,19.7477031,4623.6,4623.5,1e-08]
[1757784567881,19.4432031,4623.6,4623.5,1e-08]
[1757784568400,19.4432031,4623.6,4623.5,0.45790001]
[1757784569365,19.4432031,4623.6,4623.5,0.74770001]
[1757784569765,2.95491041,4623.4,4623.3,0.001]
[1757784569966,11.46752842,4623.4,4623.3,0.001]
[1757784570204,11.93046427,4623.4,4623.3,0.001]
[1757784570379,12.01702553,4623.4,4623.3,0.001]
[1757784572715,19.03691157,4623.4,4623.3,0.001]
[1757784578279,19.34141157,4623.4,4623.3,0.001]
[1757784578489,20.26941157,4623.4,4623.3,0.001]
[1757784580410,20.26939121,4623.4,4623.3,0.001]
[1757784580913,20.26936144,4623.4,4623.3,0.001]
[1757784581778,2.16305076,4623.1,4623.0,0.001]
[1757784581984,10.20877581,4623.1,4623.0,0.001]
[1757784582179,11.44127581,4623.1,4623.0,0.001]
[1757784582387,2.95528473,4622.6,4622.4,0.4579]
[1757784582580,11.5789623,4622.6,4622.3,0.001]
[1757784582904,12.3488623,4622.6,4622.3,0.001]
[1757784583090,13.84633018,4622.6,4622.3,0.001]
[1757784584222,14.31056085,4622.6,4622.3,0.001]
[1757784584384,14.77316085,4622.6,4622.3,0.001]
[1757784585903,14.77006085,4622.6,4622.3,0.001]
[1757784586888,15.22796085,4622.6,4622.3,0.001]
[1757784587491,22.24796085,4622.6,4622.3,0.001]
[1757784588412,21.78536085,4622.6,4622.3,0.001]
[1757784590723,22.24416085,4622.6,4622.3,0.001]
[1757784590911,21.78536085,4622.6,4622.3,0.001]
[1757784592122,21.78498222,4622.6,4622.3,0.001]
[1757784592626,21.78431286,4622.6,4622.3,0.001]
[1757784593126,21.66367624,4622.6,4622.3,0.001]
[1757784593329,21.46268328,4622.6,4622.3,0.001]
[1757784593928,21.7842653,4622.6,4622.3,0.001]
[1757784594119,21.46268328,4622.6,4622.3,0.001]
[1757784594424,21.78426355,4622.6,4622.3,0.001]
[1757784596601,22.21306355,4622.6,4622.3,0.001]
[1757784600255,2.95565918,4621.8,4621.7,0.4502]
[1757784600458,6.59465918,4621.8,4621.7,0.4502]
[1757784600752,6.91623945,4621.8,4621.7,0.7611]
[1757784602847,0.792,4621.7,4620.3,0.4729]
[1757784603144,2.16403375,4621.0,4620.9,0.4719]
[1757784603329,5.80303375,4621.0,4620.9,0.7828]
[1757784603644,3.639,4621.0,4620.9,1.233]
[1757784604150,1.661,4621.6,4620.9,1.3644]
[1757784604351,0.108,4621.1,4621.0,0.94374033]
[1757784604658,0.108,4621.1,4621.0,1.233]
[1757784609021,2.27198692,4621.1,4621.0,0.7611]
[1757784609853,2.59370107,4621.1,4621.0,0.3109]
[1757784610056,2.16403375,4621.0,4620.8,0.081]
[1757784610254,5.80208059,4620.9,4620.8,0.081]
[1757784610425,6.84659474,4620.9,4620.8,0.081]
[1757784610620,6.84656172,4620.9,4620.8,0.081]
[1757784610820,6.41426172,4620.9,4620.8,0.081]
[1757784611073,8.58035728,4620.9,4620.8,0.081]
[1757784614177,7.06455728,4620.9,4620.8,0.8421]
[1757784614379,6.12258386,4620.9,4620.8,0.8421]
[1757784614550,6.00194335,4620.9,4620.8,0.3919]
[1757784614755,6.00194335,4620.9,4620.8,0.081]
[1757784614961,5.80108059,4620.9,4620.8,0.081]
[1757784615563,6.00194335,4620.9,4620.8,0.081]
[1757784615747,7.13460149,4620.9,4620.8,0.081]
[1757784615942,7.707242,4620.9,4620.8,0.081]
[1757784618346,0.32150327,4620.9,4620.8,0.8672]
[1757784618588,3.637,4620.9,4620.8,1.3135]
[1757784618796,0.32150327,4621.2,4620.8,1.3135]
[1757784619085,0.20086276,4621.2,4620.9,0.9377]
[1757784619411,3.82476105,4621.6,4620.9,0.9377]
[1757784619412,1.661,4621.6,4621.0,0.02164033]
[1757784619587,0.108,4621.3,4621.0,3.12337408]
[1757784619915,3.637,4621.2,4621.1,0.9377]
[1757784620094,3.637,4621.2,4621.1,1.27127342]
[1757784620407,3.637,4621.2,4621.1,1.56607342]
[1757784621185,0.2007901,4621.9,4621.1,1.56607342]
[1757784621352,3.637,4621.8,4621.2,0.9593394]
[1757784621552,3.637,4621.8,4621.7,2.45845958]
[1757784621752,3.637,4621.8,4621.7,3.39615958]
[1757784622085,3.637,4621.8,4621.7,1.2325]
[1757784622887,0.108,4621.9,4621.7,1.2325]
[1757784623089,0.108,4621.9,4621.8,0.9377]
[1757784623585,0.108,4621.9,4621.8,1.2325]
[1757784624164,3.639,4622.0,4621.9,2.16361236]
[1757784624165,0.002,4622.0,4621.9,2.16361236]
[1757784624364,0.002,4622.0,4621.9,6.41774848]
[1757784624569,0.002,4622.0,4621.9,6.39611236]
[1757784627179,0.002,4622.0,4621.9,5.94981236]
[1757784627387,0.002,4622.0,4621.9,6.39761236]
[1757784627588,0.002,4622.0,4621.9,7.28770621]
[1757784628606,0.002,4622.5,4622.4,2.16337833]
[1757784628899,0.002,4622.8,4622.7,2.16323793]
[1757784629112,0.002,4622.8,4622.7,2.56413793]
[1757784629284,0.002,4622.8,4622.7,3.5297703]
[1757784629480,0.002,4622.8,4622.7,4.84910784]
[1757784629799,0.002,4622.8,4622.7,4.82747547]
[1757784631303,0.002,4622.8,4622.7,7.92814586]
[1757784631683,0.002,4622.8,4622.7,8.37594586]